[Event "FIDE Open World Rapid 2024"]
[Site "New York"]
[Date "2024.12.27"]
[Round "9.24"]
[White "Vakhidov, Jakhongir"]
[Black "Shankland, Sam"]
[Result "1/2-1/2"]
[ECO "D76"]
[WhiteElo "2546"]
[BlackElo "2672"]
[Annotator "ChessBase"]
[PlyCount "90"]
[EventDate "2024.12.14"]
[EventType "swiss"]
[EventCountry "USA"]
[SourceTitle "playchess.com"]
[Source "ChessBase"]
[SourceQuality "1"]
[TimeControl "900+10"]

1. c4 {[%emt 0:00:29]} Nf6 {[%emt 0:00:07]} 2. Nc3 {[%emt 0:00:05]} g6 {[%emt 0:00:03]} 3. g3 {[%emt 0:00:01]} Bg7 {[%emt 0:00:08]} 4. Bg2 {[%emt 0:00:02]} O-O {[%emt 0:00:07]} 5. d4 {[%emt 0:00:02]} Nc6 {[%emt 0:00:03]} 6. Nf3 {[%emt 0:01:05]} d5 {[%emt 0:00:04]} 7. cxd5 {[%emt 0:00:04]} Nxd5 {[%emt 0:00:01]} 8. O-O {[%emt 0:00:02]} Nb6 {[%emt 0:00:09]} 9. e3 {[%emt 0:00:58]} e5 {[%emt 0:00:06]} 10. d5 {[%emt 0:00:29]} e4 {[%emt 0:00:01]} 11. dxc6 {[%emt 0:00:34]} Qxd1 {[%emt 0:00:02]} 12. Rxd1 {[%emt 0:02:44]} exf3 {[%emt 0:00:01]} 13. Bxf3 {[%emt 0:00:01]} bxc6 {[%emt 0:00:02]} 14. Rb1 {[%emt 0:01:18]} Rb8 {[%emt 0:01:45]} 15. Ne2 {[%emt 0:00:50]} c5 {[%emt 0:01:47]} 16. b3 {[%emt 0:02:38]} Nc4 {[%emt 0:02:21]} 17. Bd5 {[%emt 0:00:11]} Ba6 {[%emt 0:03:00]} 18. Bxc4 {[%emt 0:00:55]} Bxc4 {[%emt 0:00:03]} 19. Nf4 {[%emt 0:00:02]} g5 {[%emt 0:01:16]} 20. Nd5 {[%emt 0:00:30]} Be2 {[%emt 0:01:04]} 21. Rd2 {[%emt 0:00:28]} Bf3 {[%emt 0:00:01]} 22. Ba3 {[%emt 0:02:02]} Rfd8 {[%emt 0:01:19]} 23. Ne7+ {[%emt 0:00:06]} Kh8 {[%emt 0:00:14]} 24. Rxd8+ {[%emt 0:00:02]} Rxd8 {[%emt 0:00:00]} 25. Bxc5 {[%emt 0:00:03]} Bf8 {[%emt 0:00:44]} 26. Rc1 {[%emt 0:00:21]} f6 {[%emt 0:01:13]} 27. Nc6 {[%emt 0:00:22]} Bxc6 {[%emt 0:00:34]} 28. Bxf8 {[%emt 0:00:01]} Bf3 {[%emt 0:00:06]} 29. Be7 {[%emt 0:00:02]} Rd2 {[%emt 0:00:07]} 30. Bxf6+ {[%emt 0:00:05]} Kg8 {[%emt 0:00:01]} 31. Bxg5 {[%emt 0:01:20]} Rxa2 {[%emt 0:00:01]} 32. e4 {[%emt 0:01:52]} Bxe4 {[%emt 0:01:20]} 33. Rxc7 {[%emt 0:00:02]} Rb2 {[%emt 0:00:07]} 34. f4 {[%emt 0:00:54]} Rxb3 {[%emt 0:01:00]} 35. Rxa7 {[%emt 0:00:00]} Rb2 {[%emt 0:00:02]} 36. Re7 {[%emt 0:00:00]} Bd5 {[%emt 0:00:15]} 37. f5 {[%emt 0:00:25]} Rg2+ {[%emt 0:00:09]} 38. Kf1 {[%emt 0:00:02]} Rxh2 {[%emt 0:00:02]} 39. f6 {[%emt 0:00:12]} Bf7 {[%emt 0:00:32]} 40. Rc7 {[%emt 0:00:18]} h6 {[%emt 0:00:10]} 41. Bf4 {[%emt 0:00:08]} Rh5 {[%emt 0:00:14]} 42. g4 {[%emt 0:00:12]} Rh4 {[%emt 0:00:04]} 43. Kf2 {[%emt 0:00:07]} h5 {[%emt 0:00:31]} 44. Bh6 {[%emt 0:00:13]} Rxg4 {[%emt 0:00:07]} 45. Bg7 {[%emt 0:00:09]} Rxg7 {[%emt 0:00:07]} 1/2-1/2

[Event "FIDE Open World Rapid 2024"]
[Site "New York"]
[Date "2024.12.28"]
[Round "9.24"]
[White "Dlugy, Maxim"]
[Black "Samadov, Read"]
[Result "0-1"]
[ECO "A45"]
[WhiteElo "2514"]
[BlackElo "2501"]
[Annotator "ChessBase"]
[PlyCount "64"]
[EventDate "2024.12.14"]
[EventType "swiss"]
[EventCountry "USA"]
[SourceTitle "playchess.com"]
[Source "ChessBase"]
[SourceQuality "1"]
[TimeControl "900+10"]

1. d4 {[%emt 0:00:01]} Nf6 {[%emt 0:00:05]} 2. Bf4 {[%emt 0:00:02]} g6 {[%emt 0:00:09]} 3. Nc3 {[%emt 0:00:01]} d5 {[%emt 0:00:09]} 4. e3 {[%emt 0:00:02]} Bg7 {[%emt 0:00:20]} 5. h4 {[%emt 0:00:02]} c6 {[%emt 0:01:34]} 6. Be2 {[%emt 0:00:12]} h5 {[%emt 0:00:25]} 7. Nf3 {[%emt 0:00:02]} Bf5 {[%emt 0:00:55]} 8. Ne5 {[%emt 0:00:09]} Nfd7 {[%emt 0:01:04]} 9. Nd3 {[%emt 0:00:38]} Na6 {[%emt 0:00:49]} 10. Qd2 {[%emt 0:02:27]} Rc8 {[%emt 0:01:36]} 11. f3 {[%emt 0:03:07]} Bxd3 {[%emt 0:00:42]} 12. cxd3 {[%emt 0:02:06]} Nc7 {[%emt 0:00:34]} 13. b4 {[%emt 0:01:32]} e5 {[%emt 0:01:43]} 14. dxe5 {[%emt 0:00:01]} Nxe5 {[%emt 0:00:27]} 15. d4 {[%emt 0:00:01]} Nc4 {[%emt 0:00:50]} 16. Bxc4 {[%emt 0:00:06]} dxc4 {[%emt 0:00:01]} 17. Ne4 {[%emt 0:04:04]} O-O {[%emt 0:01:11]} 18. Nd6 {[%emt 0:00:02]} Nd5 {[%emt 0:00:48]} 19. Nxc8 {[%emt 0:00:14]} Nxf4 {[%emt 0:00:17]} 20. exf4 {[%emt 0:00:02]} Re8+ {[%emt 0:00:24]} 21. Kf1 {[%emt 0:00:03]} Qxc8 {[%emt 0:00:01]} 22. Rd1 {[%emt 0:00:29]} Qf5 {[%emt 0:01:19]} 23. g3 {[%emt 0:00:07]} Qd5 {[%emt 0:00:37]} 24. Kg2 {[%emt 0:00:19]} c3 {[%emt 0:00:18]} 25. Qxc3 {[%emt 0:00:19]} Re2+ {[%emt 0:00:04]} 26. Kf1 {[%emt 0:01:06]} Qxa2 {[%emt 0:00:18]} 27. Qd3 {[%emt 0:00:06]} Rf2+ {[%emt 0:00:15]} 28. Ke1 {[%emt 0:00:01]} Bxd4 {[%emt 0:00:04]} 29. Rd2 {[%emt 0:00:13]} Qa1+ {[%emt 0:00:06]} 30. Rd1 {[%emt 0:00:01]} Qb2 {[%emt 0:00:15]} 31. Rb1 {[%emt 0:01:33]} Bc3+ {[%emt 0:00:03]} 32. Qxc3 {[%emt 0:00:06]} Qe2# {[%emt 0:00:01]} 0-1

[Event "FIDE Open World Rapid 2024"]
[Site "New York"]
[Date "2024.12.27"]
[Round "9.25"]
[White "Antipov, Mikhail Al."]
[Black "Ghosh, Diptayan"]
[Result "1-0"]
[ECO "C54"]
[WhiteElo "2594"]
[BlackElo "2569"]
[Annotator "ChessBase"]
[PlyCount "79"]
[EventDate "2024.12.14"]
[EventType "swiss"]
[EventCountry "USA"]
[SourceTitle "playchess.com"]
[Source "ChessBase"]
[SourceQuality "1"]
[TimeControl "900+10"]

1. e4 {[%emt 0:00:01]} e5 {[%emt 0:00:01]} 2. Nf3 {[%emt 0:00:01]} Nc6 {[%emt 0:00:01]} 3. Bc4 {[%emt 0:00:01]} Nf6 {[%emt 0:00:02]} 4. d3 {[%emt 0:00:01]} Bc5 {[%emt 0:00:04]} 5. O-O {[%emt 0:00:02]} d6 {[%emt 0:00:02]} 6. c3 {[%emt 0:00:01]} a5 {[%emt 0:00:01]} 7. Re1 {[%emt 0:00:03]} O-O {[%emt 0:00:02]} 8. h3 {[%emt 0:00:01]} Be6 {[%emt 0:00:02]} 9. Bb5 {[%emt 0:00:05]} Ba7 {[%emt 0:00:06]} 10. Ba4 {[%emt 0:00:28]} Ne7 {[%emt 0:00:39]} 11. d4 {[%emt 0:00:41]} Ng6 {[%emt 0:00:05]} 12. Bc2 {[%emt 0:00:50]} Nh5 {[%emt 0:01:28]} 13. Nbd2 {[%emt 0:01:51]} Nhf4 {[%emt 0:01:26]} 14. Nf1 {[%emt 0:00:01]} Qc8 {[%emt 0:03:07]} 15. h4 {[%emt 0:02:36]} Bg4 {[%emt 0:00:57]} 16. g3 {[%emt 0:00:08]} Bh5 {[%emt 0:01:57]} 17. Bxf4 {[%emt 0:07:09]} exf4 {[%emt 0:00:03]} 18. Kg2 {[%emt 0:01:33]} c5 {[%emt 0:02:40]} 19. N1h2 {[%emt 0:00:05]} cxd4 {[%emt 0:00:12]} 20. cxd4 {[%emt 0:00:11]} fxg3 {[%emt 0:00:30]} 21. Kxg3 {[%emt 0:01:08]} d5 {[%emt 0:01:25]} 22. e5 {[%emt 0:00:38]} f6 {[%emt 0:00:14]} 23. Rc1 {[%emt 0:00:54]} Qd8 {[%emt 0:00:20]} 24. Qd2 {[%emt 0:00:19]} fxe5 {[%emt 0:01:11]} 25. Bxg6 {[%emt 0:00:02]} hxg6 {[%emt 0:00:13]} 26. Nxe5 {[%emt 0:00:07]} Qb6 {[%emt 0:00:10]} 27. f4 {[%emt 0:00:22]} Qxd4 {[%emt 0:01:11]} 28. Qxd4 {[%emt 0:00:01]} Bxd4 {[%emt 0:00:01]} 29. Rc7 {[%emt 0:00:01]} Bxb2 {[%emt 0:00:17]} 30. Rb1 {[%emt 0:00:33]} Bxe5 {[%emt 0:00:27]} 31. fxe5 {[%emt 0:00:01]} Rf7 {[%emt 0:00:01]} 32. Rbxb7 {[%emt 0:00:13]} Rxc7 {[%emt 0:00:02]} 33. Rxc7 {[%emt 0:00:00]} Rd8 {[%emt 0:00:38]} 34. Nf3 {[%emt 0:00:26]} d4 {[%emt 0:00:18]} 35. e6 {[%emt 0:00:10]} d3 {[%emt 0:00:48]} 36. Rd7 {[%emt 0:00:03]} Re8 {[%emt 0:00:03]} 37. Ng5 {[%emt 0:00:04]} Be2 {[%emt 0:00:09]} 38. e7 {[%emt 0:00:15]} d2 {[%emt 0:00:22]} 39. Rxd2 {[%emt 0:00:02]} Bb5 {[%emt 0:00:01]} 40. Rd8 {[%emt 0:00:01]} 1-0

[Event "FIDE Open World Rapid 2024"]
[Site "New York"]
[Date "2024.12.28"]
[Round "9.25"]
[White "Kobalia, Mikhail"]
[Black "Blohberger, Felix"]
[Result "1/2-1/2"]
[ECO "C66"]
[WhiteElo "2543"]
[BlackElo "2534"]
[Annotator "ChessBase"]
[PlyCount "162"]
[EventDate "2024.12.14"]
[EventType "swiss"]
[EventCountry "USA"]
[SourceTitle "playchess.com"]
[Source "ChessBase"]
[SourceQuality "1"]
[TimeControl "900+10"]

1. e4 {[%emt 0:00:01]} e5 {[%emt 0:00:02]} 2. Nf3 {[%emt 0:00:02]} Nc6 {[%emt 0:00:02]} 3. Bb5 {[%emt 0:00:01]} Nf6 {[%emt 0:00:01]} 4. d3 {[%emt 0:00:25]} d6 {[%emt 0:00:03]} 5. O-O {[%emt 0:00:09]} a6 {[%emt 0:00:29]} 6. Bxc6+ {[%emt 0:00:33]} bxc6 {[%emt 0:00:02]} 7. Re1 {[%emt 0:00:06]} a5 {[%emt 0:00:14]} 8. d4 {[%emt 0:00:20]} Nd7 {[%emt 0:00:01]} 9. Nbd2 {[%emt 0:00:48]} Be7 {[%emt 0:02:10]} 10. dxe5 {[%emt 0:00:42]} dxe5 {[%emt 0:00:10]} 11. Nc4 {[%emt 0:00:04]} f6 {[%emt 0:00:15]} 12. Bd2 {[%emt 0:00:13]} a4 {[%emt 0:00:45]} 13. Na5 {[%emt 0:00:06]} Ra6 {[%emt 0:01:10]} 14. Qe2 {[%emt 0:00:08]} Nc5 {[%emt 0:02:21]} 15. Bb4 {[%emt 0:01:21]} Ne6 {[%emt 0:05:30]} 16. Red1 {[%emt 0:03:01]} Nd4 {[%emt 0:00:09]} 17. Nxd4 {[%emt 0:00:04]} exd4 {[%emt 0:00:03]} 18. Bxe7 {[%emt 0:01:36]} Qxe7 {[%emt 0:00:04]} 19. Nc4 {[%emt 0:00:02]} c5 {[%emt 0:00:05]} 20. Qh5+ {[%emt 0:00:25]} g6 {[%emt 0:00:07]} 21. Qh6 {[%emt 0:00:07]} Re6 {[%emt 0:00:34]} 22. f3 {[%emt 0:00:58]} Ba6 {[%emt 0:01:03]} 23. b3 {[%emt 0:00:05]} Kf7 {[%emt 0:01:38]} 24. Nb2 {[%emt 0:02:27]} a3 {[%emt 0:00:03]} 25. Nd3 {[%emt 0:00:01]} Rc6 {[%emt 0:01:07]} 26. Rac1 {[%emt 0:00:26]} Qf8 {[%emt 0:00:36]} 27. Qd2 {[%emt 0:00:05]} Qa8 {[%emt 0:00:42]} 28. e5 {[%emt 0:00:21]} Bxd3 {[%emt 0:00:04]} 29. Qxd3 {[%emt 0:01:11]} fxe5 {[%emt 0:00:03]} 30. Re1 {[%emt 0:00:25]} Re8 {[%emt 0:00:11]} 31. Qc4+ {[%emt 0:00:08]} Kg7 {[%emt 0:00:05]} 32. Qd5 {[%emt 0:00:05]} Rd6 {[%emt 0:00:27]} 33. Qxc5 {[%emt 0:00:02]} Qc6 {[%emt 0:00:08]} 34. Rxe5 {[%emt 0:00:10]} Qxc5 {[%emt 0:00:11]} 35. Rxc5 {[%emt 0:00:01]} Re2 {[%emt 0:00:11]} 36. Rxc7+ {[%emt 0:00:06]} Kh6 {[%emt 0:00:03]} 37. Rd1 {[%emt 0:00:16]} g5 {[%emt 0:00:19]} 38. Kf1 {[%emt 0:00:31]} Rde6 {[%emt 0:00:01]} 39. Rxd4 {[%emt 0:00:34]} Re1+ {[%emt 0:00:01]} 40. Kf2 {[%emt 0:00:01]} Ra1 {[%emt 0:00:01]} 41. Rdc4 {[%emt 0:00:56]} Rxa2 {[%emt 0:00:27]} 42. R4c6 {[%emt 0:00:13]} Rg6 {[%emt 0:00:15]} 43. Ke3 {[%emt 0:00:24]} Ra1 {[%emt 0:00:10]} 44. Rxg6+ {[%emt 0:00:08]} Kxg6 {[%emt 0:00:01]} 45. Ra7 {[%emt 0:00:05]} h5 {[%emt 0:00:11]} 46. h3 {[%emt 0:00:33]} h4 {[%emt 0:00:05]} 47. Ra5 {[%emt 0:00:24]} Kf6 {[%emt 0:00:22]} 48. f4 {[%emt 0:00:50]} gxf4+ {[%emt 0:00:12]} 49. Kxf4 {[%emt 0:00:01]} Ra2 {[%emt 0:00:04]} 50. c4 {[%emt 0:00:17]} Rxg2 {[%emt 0:00:20]} 51. Rxa3 {[%emt 0:00:03]} Rg3 {[%emt 0:00:01]} 52. Ra6+ {[%emt 0:00:50]} Ke7 {[%emt 0:00:01]} 53. Rb6 {[%emt 0:00:06]} Rxh3 {[%emt 0:00:14]} 54. Kg4 {[%emt 0:00:01]} Rh1 {[%emt 0:00:11]} 55. b4 {[%emt 0:00:14]} Kd7 {[%emt 0:00:03]} 56. b5 {[%emt 0:00:18]} h3 {[%emt 0:00:18]} 57. Kg3 {[%emt 0:00:10]} Rc1 {[%emt 0:00:21]} 58. Rc6 {[%emt 0:00:07]} Rc3+ {[%emt 0:00:03]} 59. Kh2 {[%emt 0:00:01]} Rb3 {[%emt 0:00:08]} 60. Rc5 {[%emt 0:00:16]} Kd6 {[%emt 0:00:19]} 61. Rh5 {[%emt 0:00:20]} Rc3 {[%emt 0:00:09]} 62. Rd5+ {[%emt 0:00:04]} Ke6 {[%emt 0:00:09]} 63. Rd4 {[%emt 0:00:16]} Ke5 {[%emt 0:00:06]} 64. Rh4 {[%emt 0:00:02]} Kd6 {[%emt 0:00:04]} 65. Rh6+ {[%emt 0:00:03]} Kc7 {[%emt 0:00:11]} 66. Rc6+ {[%emt 0:00:29]} Kb7 {[%emt 0:00:06]} 67. Rc5 {[%emt 0:00:20]} Kb6 {[%emt 0:00:05]} 68. Rc8 {[%emt 0:00:01]} Kb7 {[%emt 0:00:14]} 69. Rc6 {[%emt 0:00:02]} Rb3 {[%emt 0:00:07]} 70. Rc5 {[%emt 0:00:37]} Rc3 {[%emt 0:00:08]} 71. Rc6 {[%emt 0:00:03]} Rb3 {[%emt 0:00:02]} 72. Rh6 {[%emt 0:00:04]} Rc3 {[%emt 0:00:04]} 73. Rh4 {[%emt 0:00:05]} Kb6 {[%emt 0:00:03]} 74. Rg4 {[%emt 0:00:39]} Kb7 {[%emt 0:00:12]} 75. Rd4 {[%emt 0:00:02]} Kc7 {[%emt 0:00:16]} 76. Re4 {[%emt 0:00:01]} Kb7 {[%emt 0:00:14]} 77. Re7+ {[%emt 0:00:04]} Kb8 {[%emt 0:00:06]} 78. Re4 {[%emt 0:00:02]} Kb7 {[%emt 0:00:03]} 79. Rf4 {[%emt 0:00:23]} Kc7 {[%emt 0:00:06]} 80. Rh4 {[%emt 0:00:20]} Kb7 {[%emt 0:00:05]} 81. Rxh3 {[%emt 0:00:14]} Rxc4 {[%emt 0:00:02]} 1/2-1/2

[Event "FIDE Open World Rapid 2024"]
[Site "New York"]
[Date "2024.12.27"]
[Round "9.26"]
[White "Pichot, Alan"]
[Black "Jacobson, Brandon"]
[Result "0-1"]
[ECO "C54"]
[WhiteElo "2637"]
[BlackElo "2583"]
[Annotator "ChessBase"]
[PlyCount "88"]
[EventDate "2024.12.14"]
[EventType "swiss"]
[EventCountry "USA"]
[SourceTitle "playchess.com"]
[Source "ChessBase"]
[SourceQuality "1"]
[TimeControl "900+10"]

1. e4 {[%emt 0:00:03]} e5 {[%emt 0:00:03]} 2. Nf3 {[%emt 0:00:02]} Nc6 {[%emt 0:00:02]} 3. Bc4 {[%emt 0:00:06]} Bc5 {[%emt 0:00:05]} 4. O-O {[%emt 0:00:12]} Nf6 {[%emt 0:00:03]} 5. d3 {[%emt 0:00:02]} d6 {[%emt 0:00:07]} 6. c3 {[%emt 0:00:05]} a6 {[%emt 0:00:12]} 7. a4 {[%emt 0:00:16]} Ba7 {[%emt 0:00:09]} 8. Re1 {[%emt 0:00:40]} h6 {[%emt 0:00:07]} 9. b4 {[%emt 0:00:17]} g5 {[%emt 0:00:12]} 10. Be3 {[%emt 0:00:21]} g4 {[%emt 0:00:24]} 11. Nfd2 {[%emt 0:00:04]} Bxe3 {[%emt 0:00:07]} 12. fxe3 {[%emt 0:00:31]} h5 {[%emt 0:00:19]} 13. Rf1 {[%emt 0:00:33]} Rh6 {[%emt 0:02:13]} 14. Na3 {[%emt 0:01:17]} Kf8 {[%emt 0:03:35]} 15. d4 {[%emt 0:02:32]} Kg7 {[%emt 0:01:07]} 16. Bb3 {[%emt 0:01:45]} Ne7 {[%emt 0:03:10]} 17. dxe5 {[%emt 0:00:44]} dxe5 {[%emt 0:00:03]} 18. Nac4 {[%emt 0:00:24]} Ng6 {[%emt 0:00:11]} 19. Qe2 {[%emt 0:02:39]} Qe7 {[%emt 0:00:27]} 20. Na5 {[%emt 0:02:04]} Rb8 {[%emt 0:02:59]} 21. Rxf6 {[%emt 0:00:32]} Qxf6 {[%emt 0:00:13]} 22. Rf1 {[%emt 0:00:02]} Qd8 {[%emt 0:00:58]} 23. Rxf7+ {[%emt 0:00:11]} Kh8 {[%emt 0:00:01]} 24. Qf2 {[%emt 0:01:31]} Rh7 {[%emt 0:00:33]} 25. Nf1 {[%emt 0:01:10]} h4 {[%emt 0:00:43]} 26. Bd5 {[%emt 0:00:20]} Rg7 {[%emt 0:01:01]} 27. b5 {[%emt 0:00:19]} axb5 {[%emt 0:00:02]} 28. axb5 {[%emt 0:00:01]} Kh7 {[%emt 0:00:16]} 29. c4 {[%emt 0:00:41]} Rxf7 {[%emt 0:00:12]} 30. Qxf7+ {[%emt 0:00:07]} Kh6 {[%emt 0:00:01]} 31. Nb3 {[%emt 0:00:37]} Qe7 {[%emt 0:00:05]} 32. Qf2 {[%emt 0:00:09]} Bd7 {[%emt 0:00:19]} 33. Na5 {[%emt 0:00:11]} Rf8 {[%emt 0:00:09]} 34. Qe1 {[%emt 0:00:05]} b6 {[%emt 0:00:10]} 35. Nc6 {[%emt 0:00:03]} Qf6 {[%emt 0:00:04]} 36. Qe2 {[%emt 0:00:18]} Ne7 {[%emt 0:00:06]} 37. Qe1 {[%emt 0:00:11]} Kg7 {[%emt 0:00:14]} 38. Nd2 {[%emt 0:00:09]} Qg5 {[%emt 0:00:22]} 39. c5 {[%emt 0:00:14]} bxc5 {[%emt 0:00:08]} 40. Nc4 {[%emt 0:00:02]} Bxc6 {[%emt 0:00:07]} 41. bxc6 {[%emt 0:00:10]} g3 {[%emt 0:00:08]} 42. Qa1 {[%emt 0:00:15]} Qf6 {[%emt 0:00:09]} 43. Qxe5 {[%emt 0:00:13]} Qxe5 {[%emt 0:00:01]} 44. Nxe5 {[%emt 0:00:02]} Rf1+ {[%emt 0:00:01]} 0-1

[Event "FIDE Open World Rapid 2024"]
[Site "New York"]
[Date "2024.12.28"]
[Round "9.26"]
[White "Erenburg, Sergey"]
[Black "Urazayev, Arystanbek"]
[Result "1/2-1/2"]
[ECO "B30"]
[WhiteElo "2510"]
[BlackElo "2470"]
[Annotator "ChessBase"]
[PlyCount "104"]
[EventDate "2024.12.14"]
[EventType "swiss"]
[EventCountry "USA"]
[SourceTitle "playchess.com"]
[Source "ChessBase"]
[SourceQuality "1"]
[TimeControl "900+10"]

1. e4 {[%emt 0:00:01]} c5 {[%emt 0:00:01]} 2. Nf3 {[%emt 0:00:01]} Nc6 {[%emt 0:00:02]} 3. Bb5 {[%emt 0:00:03]} Nf6 {[%emt 0:00:02]} 4. Bxc6 {[%emt 0:00:03]} dxc6 {[%emt 0:00:01]} 5. d3 {[%emt 0:00:01]} Qc7 {[%emt 0:00:02]} 6. Nbd2 {[%emt 0:00:03]} e5 {[%emt 0:00:02]} 7. Nc4 {[%emt 0:00:03]} b5 {[%emt 0:00:01]} 8. Ne3 {[%emt 0:00:05]} c4 {[%emt 0:00:13]} 9. dxc4 {[%emt 0:00:55]} Nxe4 {[%emt 0:00:02]} 10. O-O {[%emt 0:01:07]} Bc5 {[%emt 0:01:29]} 11. cxb5 {[%emt 0:00:59]} O-O {[%emt 0:00:03]} 12. bxc6 {[%emt 0:00:09]} Qxc6 {[%emt 0:00:02]} 13. Nxe5 {[%emt 0:00:44]} Qc7 {[%emt 0:04:11]} 14. Nd3 {[%emt 0:04:28]} Bd6 {[%emt 0:00:02]} 15. Nd5 {[%emt 0:02:22]} Bxh2+ {[%emt 0:02:30]} 16. Kh1 {[%emt 0:00:01]} Qd6 {[%emt 0:00:58]} 17. N5f4 {[%emt 0:01:09]} Bxf4 {[%emt 0:01:20]} 18. Bxf4 {[%emt 0:00:03]} Qf6 {[%emt 0:01:14]} 19. f3 {[%emt 0:01:17]} Nc5 {[%emt 0:00:11]} 20. Nxc5 {[%emt 0:00:19]} Qxf4 {[%emt 0:00:02]} 21. Qd5 {[%emt 0:00:20]} Rb8 {[%emt 0:00:36]} 22. Nd3 {[%emt 0:00:19]} Qh6+ {[%emt 0:00:50]} 23. Kg1 {[%emt 0:00:01]} Ba6 {[%emt 0:00:07]} 24. Qd4 {[%emt 0:00:30]} Rb5 {[%emt 0:01:42]} 25. Ne5 {[%emt 0:00:40]} Qe6 {[%emt 0:02:58]} 26. Rfe1 {[%emt 0:00:12]} Rd5 {[%emt 0:00:01]} 27. Qe3 {[%emt 0:00:05]} f6 {[%emt 0:00:34]} 28. Ng4 {[%emt 0:00:18]} Qd7 {[%emt 0:00:01]} 29. Qe6+ {[%emt 0:01:04]} Qxe6 {[%emt 0:00:01]} 30. Rxe6 {[%emt 0:00:01]} Bc8 {[%emt 0:00:02]} 31. Re2 {[%emt 0:00:56]} Bxg4 {[%emt 0:00:22]} 32. fxg4 {[%emt 0:00:01]} Rd4 {[%emt 0:00:18]} 33. b3 {[%emt 0:00:23]} Rxg4 {[%emt 0:00:03]} 34. Rd1 {[%emt 0:00:01]} a5 {[%emt 0:00:10]} 35. a4 {[%emt 0:00:09]} Rg5 {[%emt 0:00:01]} 36. Rd7 {[%emt 0:00:09]} h5 {[%emt 0:00:02]} 37. Rb7 {[%emt 0:00:22]} Rc8 {[%emt 0:00:20]} 38. Rb5 {[%emt 0:00:25]} Rcc5 {[%emt 0:00:23]} 39. c4 {[%emt 0:00:26]} Kf7 {[%emt 0:00:07]} 40. Rb7+ {[%emt 0:00:01]} Kg6 {[%emt 0:00:08]} 41. Ree7 {[%emt 0:00:03]} Kh6 {[%emt 0:00:04]} 42. Rb5 {[%emt 0:00:02]} h4 {[%emt 0:00:09]} 43. Ra7 {[%emt 0:00:14]} Rce5 {[%emt 0:00:38]} 44. Raxa5 {[%emt 0:00:14]} Re2 {[%emt 0:00:10]} 45. Rxg5 {[%emt 0:00:02]} fxg5 {[%emt 0:00:01]} 46. Rd5 {[%emt 0:00:24]} Rb2 {[%emt 0:00:04]} 47. Rd3 {[%emt 0:00:05]} g4 {[%emt 0:00:01]} 48. g3 {[%emt 0:00:18]} h3 {[%emt 0:00:05]} 49. c5 {[%emt 0:01:24]} Rb1+ {[%emt 0:00:01]} 50. Kh2 {[%emt 0:00:02]} Rb2+ {[%emt 0:00:02]} 51. Kg1 {[%emt 0:00:03]} Rb1+ {[%emt 0:00:22]} 52. Kh2 {[%emt 0:00:05]} Rb2+ {[%emt 0:00:01]} 1/2-1/2

[Event "FIDE Open World Rapid 2024"]
[Site "New York"]
[Date "2024.12.27"]
[Round "9.27"]
[White "Volokitin, Andrei"]
[Black "Can, Isik"]
[Result "1/2-1/2"]
[ECO "C24"]
[WhiteElo "2649"]
[BlackElo "2499"]
[Annotator "ChessBase"]
[PlyCount "66"]
[EventDate "2024.12.14"]
[EventType "swiss"]
[EventCountry "USA"]
[SourceTitle "playchess.com"]
[Source "ChessBase"]
[SourceQuality "1"]
[TimeControl "900+10"]

1. e4 {[%emt 0:00:02]} e5 {[%emt 0:00:01]} 2. Nf3 {[%emt 0:00:01]} Nc6 {[%emt 0:00:02]} 3. Bc4 {[%emt 0:00:02]} Bc5 {[%emt 0:00:02]} 4. O-O {[%emt 0:00:03]} Nf6 {[%emt 0:00:02]} 5. d3 {[%emt 0:00:02]} O-O {[%emt 0:00:04]} 6. h3 {[%emt 0:00:03]} d5 {[%emt 0:00:26]} 7. exd5 {[%emt 0:00:05]} Nxd5 {[%emt 0:00:02]} 8. a4 {[%emt 0:00:41]} Nb6 {[%emt 0:03:01]} 9. Bb3 {[%emt 0:00:21]} a5 {[%emt 0:00:14]} 10. Nc3 {[%emt 0:01:15]} h6 {[%emt 0:02:33]} 11. Ne4 {[%emt 0:00:33]} Bd6 {[%emt 0:00:02]} 12. Re1 {[%emt 0:00:45]} Re8 {[%emt 0:02:59]} 13. d4 {[%emt 0:09:28]} exd4 {[%emt 0:00:49]} 14. Nxd6 {[%emt 0:00:47]} Rxe1+ {[%emt 0:00:13]} 15. Qxe1 {[%emt 0:00:02]} cxd6 {[%emt 0:00:06]} 16. Qe4 {[%emt 0:00:19]} Qf6 {[%emt 0:02:06]} 17. Qe8+ {[%emt 0:02:50]} Kh7 {[%emt 0:00:01]} 18. Qxf7 {[%emt 0:00:02]} Qxf7 {[%emt 0:00:02]} 19. Bxf7 {[%emt 0:00:02]} d5 {[%emt 0:02:30]} 20. Bf4 {[%emt 0:00:33]} Bf5 {[%emt 0:00:01]} 21. Bc7 {[%emt 0:00:03]} Rf8 {[%emt 0:00:01]} 22. Bxb6 {[%emt 0:00:14]} Rxf7 {[%emt 0:00:02]} 23. Nxd4 {[%emt 0:00:31]} Nxd4 {[%emt 0:00:02]} 24. Bxd4 {[%emt 0:00:02]} Bxc2 {[%emt 0:00:01]} 25. Rc1 {[%emt 0:00:15]} Bxa4 {[%emt 0:00:45]} 26. Rc5 {[%emt 0:00:02]} Bc6 {[%emt 0:01:14]} 27. Rxa5 {[%emt 0:00:01]} Rf4 {[%emt 0:00:01]} 28. Be5 {[%emt 0:00:16]} Re4 {[%emt 0:00:11]} 29. f4 {[%emt 0:00:24]} d4 {[%emt 0:00:50]} 30. Ra3 {[%emt 0:00:07]} Bb5 {[%emt 0:00:09]} 31. Rb3 {[%emt 0:00:12]} d3 {[%emt 0:00:02]} 32. Bc3 {[%emt 0:00:06]} Ba6 {[%emt 0:00:37]} 33. Rb4 {[%emt 0:00:03]} Rxb4 {[%emt 0:00:38]} 1/2-1/2

[Event "FIDE Open World Rapid 2024"]
[Site "New York"]
[Date "2024.12.28"]
[Round "9.27"]
[White "Saraci, Nderim"]
[Black "Benjamin, Joel"]
[Result "1/2-1/2"]
[ECO "A12"]
[WhiteElo "2431"]
[BlackElo "2473"]
[Annotator "ChessBase"]
[PlyCount "70"]
[EventDate "2024.12.14"]
[EventType "swiss"]
[EventCountry "USA"]
[SourceTitle "playchess.com"]
[Source "ChessBase"]
[SourceQuality "1"]
[TimeControl "900+10"]

1. Nf3 {[%emt 0:00:03]} Nf6 {[%emt 0:00:02]} 2. b3 {[%emt 0:00:01]} d5 {[%emt 0:00:19]} 3. Bb2 {[%emt 0:00:04]} Bg4 {[%emt 0:00:04]} 4. e3 {[%emt 0:00:06]} Nbd7 {[%emt 0:00:19]} 5. c4 {[%emt 0:00:04]} e6 {[%emt 0:00:05]} 6. Be2 {[%emt 0:00:45]} c6 {[%emt 0:00:38]} 7. O-O {[%emt 0:00:26]} Bd6 {[%emt 0:00:11]} 8. Nc3 {[%emt 0:00:33]} O-O {[%emt 0:00:09]} 9. d4 {[%emt 0:00:05]} Qe7 {[%emt 0:00:41]} 10. h3 {[%emt 0:00:12]} Bh5 {[%emt 0:00:04]} 11. Qc2 {[%emt 0:00:14]} Rad8 {[%emt 0:00:42]} 12. Rad1 {[%emt 0:00:28]} Bb8 {[%emt 0:00:27]} 13. e4 {[%emt 0:01:07]} Bg6 {[%emt 0:00:48]} 14. Bd3 {[%emt 0:00:10]} dxc4 {[%emt 0:00:20]} 15. bxc4 {[%emt 0:00:05]} e5 {[%emt 0:00:03]} 16. d5 {[%emt 0:00:16]} Bd6 {[%emt 0:01:04]} 17. Nh4 {[%emt 0:01:19]} Bb4 {[%emt 0:00:58]} 18. Ne2 {[%emt 0:00:35]} cxd5 {[%emt 0:00:53]} 19. cxd5 {[%emt 0:00:24]} Rc8 {[%emt 0:00:38]} 20. Qb1 {[%emt 0:00:17]} Nh5 {[%emt 0:01:42]} 21. Nxg6 {[%emt 0:00:32]} hxg6 {[%emt 0:00:04]} 22. Bb5 {[%emt 0:01:49]} Ndf6 {[%emt 0:00:37]} 23. Qd3 {[%emt 0:03:01]} Rfd8 {[%emt 0:00:47]} 24. g3 {[%emt 0:02:46]} Ne8 {[%emt 0:03:04]} 25. Bxe8 {[%emt 0:00:47]} Qxe8 {[%emt 0:00:15]} 26. Rc1 {[%emt 0:00:02]} Nf6 {[%emt 0:00:27]} 27. Kg2 {[%emt 0:00:19]} Bd6 {[%emt 0:00:30]} 28. Rxc8 {[%emt 0:01:25]} Rxc8 {[%emt 0:00:01]} 29. Rc1 {[%emt 0:00:19]} Rxc1 {[%emt 0:00:32]} 30. Nxc1 {[%emt 0:00:49]} Qa4 {[%emt 0:00:54]} 31. f3 {[%emt 0:00:01]} Nd7 {[%emt 0:00:16]} 32. Qb3 {[%emt 0:00:15]} Qa6 {[%emt 0:01:00]} 33. Qd3 {[%emt 0:00:24]} Qa4 {[%emt 0:00:27]} 34. Qb3 {[%emt 0:00:05]} Qa6 {[%emt 0:00:28]} 35. Qd3 {[%emt 0:00:15]} Qa4 {[%emt 0:00:02]} 1/2-1/2